fUSD/lending_fUSD_20260613
["ID","MTS","AMOUNT","RATE_DAILY","PERIOD"]
[424951015,1781335841000,-500.0,8.552e-05,2]
[424951006,1781335841000,-500.0,8.552e-05,2]
[424951017,1781335841000,-500.0,8.552e-05,2]
[424951044,1781335841000,-500.0,8.552e-05,2]
[424951045,1781335841000,-500.0,8.552e-05,2]
[424951046,1781335841000,-500.0,8.552e-05,2]
[424951051,1781335841000,-500.0,8.552e-05,2]
[424951048,1781335841000,-500.0,8.552e-05,2]
[424951052,1781335841000,-500.0,8.552e-05,2]
[424951054,1781335841000,-500.0,8.552e-05,2]
[424951055,1781335841000,-500.0,8.552e-05,2]
[424951056,1781335841000,-500.0,8.552e-05,2]
[424951047,1781335841000,-500.0,8.552e-05,2]
[424951043,1781335841000,-500.0,8.552e-05,2]
[424951049,1781335841000,-500.0,8.552e-05,2]
[424951057,1781335841000,-500.0,8.552e-05,2]
[424951059,1781335841000,-500.0,8.552e-05,2]
[424951060,1781335841000,-398.786146,8.552e-05,2]
[424951063,1781335841000,-761.357904,8.552e-05,2]
[424951064,1781335841000,-761.357904,8.552e-05,2]
[424951061,1781335841000,-155.450133,8.552e-05,2]
[424951065,1781335841000,-761.357904,8.552e-05,2]
[424951058,1781335841000,-500.0,8.552e-05,2]
[424951019,1781335841000,-500.0,8.552e-05,2]
[424951062,1781335841000,-761.357904,8.552e-05,2]
[424951053,1781335841000,-500.0,8.552e-05,2]
[424951042,1781335841000,-500.0,8.552e-05,2]
[424951050,1781335841000,-500.0,8.552e-05,2]
[424951041,1781335841000,-500.0,8.552e-05,2]
[424951018,1781335841000,-500.0,8.552e-05,2]
[424951039,1781335841000,-500.0,8.552e-05,2]
[424951021,1781335841000,-500.0,8.552e-05,2]
[424951023,1781335841000,-500.0,8.552e-05,2]
[424951022,1781335841000,-500.0,8.552e-05,2]
[424951033,1781335841000,-500.0,8.552e-05,2]
[424951025,1781335841000,-500.0,8.552e-05,2]
[424951024,1781335841000,-500.0,8.552e-05,2]
[424951026,1781335841000,-500.0,8.552e-05,2]
[424951027,1781335841000,-500.0,8.552e-05,2]
[424951028,1781335841000,-500.0,8.552e-05,2]
[424951020,1781335841000,-500.0,8.552e-05,2]
[424951038,1781335841000,-151.0,8.552e-05,2]
[424951029,1781335841000,-500.0,8.552e-05,2]
[424951030,1781335841000,-500.0,8.552e-05,2]
[424951032,1781335841000,-500.0,8.552e-05,2]
[424951034,1781335841000,-500.0,8.552e-05,2]
[424951036,1781335841000,-500.0,8.552e-05,2]
[424951035,1781335841000,-500.0,8.552e-05,2]
[424951037,1781335841000,-500.0,8.552e-05,2]
[424951040,1781335841000,-500.0,8.552e-05,2]
[424951031,1781335841000,-500.0,8.552e-05,2]
[424951102,1781335842000,-881.79,8.923e-05,2]
[424951100,1781335842000,-160.0,8.915e-05,2]
[424951099,1781335842000,-151.0,8.914e-05,2]
[424951098,1781335842000,-22932.21549619,8.857e-05,2]
[424951120,1781335842000,-761.357904,9.019e-05,2]
[424951095,1781335842000,-761.357904,8.857e-05,2]
[424951097,1781335842000,-761.357904,8.857e-05,2]
[424951094,1781335842000,-761.357904,8.857e-05,2]
[424951092,1781335842000,-164.89,8.831e-05,2]
[424951096,1781335842000,-761.357904,8.857e-05,2]
[424951104,1781335842000,-500.0,8.932e-05,2]
[424951101,1781335842000,-216.029201,8.915e-05,2]
[424951109,1781335842000,-83670.17507259,9.019e-05,2]
[424951103,1781335842000,-150.0,8.93e-05,2]
[424951106,1781335842000,-150.0,8.997e-05,2]
[424951107,1781335842000,-150.0,9.019e-05,2]
[424951108,1781335842000,-55931.49740357,9.019e-05,2]
[424951110,1781335842000,-113208.7176,9.019e-05,2]
[424951112,1781335842000,-151.0,9.019e-05,2]
[424951111,1781335842000,-151.0,9.019e-05,2]
[424951115,1781335842000,-761.357904,9.019e-05,2]
[424951093,1781335842000,-150.0,8.842e-05,2]
[424951105,1781335842000,-1598.75,8.968e-05,2]
[424951090,1781335842000,-150.0,8.753e-05,2]
[424951067,1781335842000,-151.0,8.649e-05,2]
[424951089,1781335842000,-150.0,8.753e-05,2]
[424951113,1781335842000,-151.283773,9.019e-05,2]
[424951066,1781335842000,-500.0,8.552e-05,2]
[424951068,1781335842000,-188.85854515,8.652e-05,2]
[424951070,1781335842000,-199.47305405,8.652e-05,2]
[424951073,1781335842000,-500.0,8.745e-05,2]
[424951072,1781335842000,-202.33,8.676e-05,2]
[424951074,1781335842000,-500.0,8.745e-05,2]
[424951069,1781335842000,-339.60543588,8.652e-05,2]
[424951071,1781335842000,-154.70902674,8.662e-05,2]
[424951076,1781335842000,-500.0,8.745e-05,2]
[424951078,1781335842000,-500.0,8.745e-05,2]
[424951075,1781335842000,-500.0,8.745e-05,2]
[424951077,1781335842000,-500.0,8.745e-05,2]
[424951079,1781335842000,-500.0,8.745e-05,2]
[424951080,1781335842000,-500.0,8.745e-05,2]
[424951083,1781335842000,-150.0,8.753e-05,2]
[424951082,1781335842000,-545.99070639,8.745e-05,2]
[424951084,1781335842000,-150.52331038,8.753e-05,2]
[424951086,1781335842000,-150.0,8.753e-05,2]
[424951087,1781335842000,-150.71042637,8.753e-05,2]
[424951081,1781335842000,-500.0,8.745e-05,2]
[424951088,1781335842000,-150.0,8.753e-05,2]
[424951085,1781335842000,-150.0,8.753e-05,2]
[424951091,1781335842000,-500.0,8.826e-05,2]
[424951117,1781335842000,-761.357904,9.019e-05,2]
[424951159,1781335842000,-151.0,9.589e-05,2]
[424951119,1781335842000,-761.357904,9.019e-05,2]
[424951146,1781335842000,-34221.3251059,9.46e-05,2]
[424951144,1781335842000,-151.0,9.457e-05,2]
[424951149,1781335842000,-761.357904,9.54e-05,2]
[424951147,1781335842000,-150.0,9.461e-05,2]
[424951151,1781335842000,-761.357904,9.54e-05,2]
[424951150,1781335842000,-761.357904,9.54e-05,2]
[424951152,1781335842000,-761.357898,9.54e-05,2]
[424951154,1781335842000,-2170.741392,9.54e-05,2]
[424951153,1781335842000,-2004.931728,9.54e-05,2]
[424951155,1781335842000,-150.0,9.549e-05,2]
[424951157,1781335842000,-151.0,9.589e-05,2]
[424951162,1781335842000,-151.0,9.589e-05,2]
[424951160,1781335842000,-151.0,9.589e-05,2]
[424951158,1781335842000,-151.0,9.589e-05,2]
[424951156,1781335842000,-151.0,9.589e-05,2]
[424951161,1781335842000,-151.0,9.589e-05,2]
[424951169,1781335842000,-150.0,9.638e-05,2]
[424951168,1781335842000,-8693.5177,9.635e-05,2]
[424951116,1781335842000,-761.357904,9.019e-05,2]
[424951164,1781335842000,-151.0,9.589e-05,2]
[424951166,1781335842000,-230.390535,9.589e-05,2]
[424951165,1781335842000,-151.0,9.589e-05,2]
[424951167,1781335842000,-202.33,9.589e-05,2]
[424951148,1781335842000,-150.0,9.483e-05,2]
[424951145,1781335842000,-3251.7810429,9.46e-05,2]
[424951163,1781335842000,-151.0,9.589e-05,2]
[424951143,1781335842000,-902.1121441,9.456e-05,2]
[424951142,1781335842000,-12336.1962512,9.411e-05,2]
[424951114,1781335842000,-3884.7277366,9.019e-05,2]
[424951118,1781335842000,-761.357904,9.019e-05,2]
[424951121,1781335842000,-761.357904,9.019e-05,2]
[424951124,1781335842000,-150.0,9.078e-05,2]
[424951122,1781335842000,-761.357904,9.019e-05,2]
[424951130,1781335842000,-166.52,9.162e-05,2]
[424951131,1781335842000,-150.0,9.196e-05,2]
[424951126,1781335842000,-500.0,9.106e-05,2]
[424951128,1781335842000,-150.0,9.107e-05,2]
[424951125,1781335842000,-500.0,9.1e-05,2]
[424951127,1781335842000,-506.48669401,9.106e-05,2]
[424951129,1781335842000,-202.33,9.132e-05,2]
[424951132,1781335842000,-150.0,9.24e-05,2]
[424951139,1781335842000,-500.0,9.374e-05,2]
[424951140,1781335842000,-150.0,9.402e-05,2]
[424951141,1781335842000,-150.0,9.402e-05,2]
[424951138,1781335842000,-150.0,9.372e-05,2]
[424951137,1781335842000,-164.92,9.356e-05,2]
[424951136,1781335842000,-164.89,9.292e-05,2]
[424951135,1781335842000,-150.0,9.284e-05,2]
[424951134,1781335842000,-2000.0,9.247e-05,2]
[424951133,1781335842000,-150.0,9.24e-05,2]
[424951123,1781335842000,-150.0,9.078e-05,2]
[424951179,1781335843000,-1219.3,9.67e-05,2]
[424951181,1781335843000,-482.23,9.672e-05,2]
[424951176,1781335843000,-9999.99,9.67e-05,2]
[424951180,1781335843000,-161.59782011,9.67e-05,2]
[424951182,1781335843000,-331.0,9.699e-05,2]
[424951170,1781335843000,-500.0,9.648e-05,2]
[424951183,1781335843000,-154.45182715,9.726e-05,2]
[424951173,1781335843000,-725.5704248,9.668e-05,2]
[424951174,1781335843000,-7635.8097513,9.668e-05,2]
[424951172,1781335843000,-201.2884271,9.667e-05,2]
[424951171,1781335843000,-2752.5774451,9.657e-05,2]
[424951177,1781335843000,-29999.99,9.67e-05,2]
[424951175,1781335843000,-161.31518,9.668e-05,2]
[424951184,1781335843000,-151.67579385,9.726e-05,2]
[424951192,1781335843000,-342075.54274919,9.735e-05,2]
[424951186,1781335843000,-155.30128715,9.726e-05,2]
[424951188,1781335843000,-174.0991703,9.726e-05,2]
[424951204,1781335843000,-2681.7102304,9.735e-05,2]
[424951203,1781335843000,-634.28,9.735e-05,2]
[424951202,1781335843000,-1411.79630058,9.735e-05,2]
[424951201,1781335843000,-7504.93208322,9.735e-05,2]
[424951195,1781335843000,-1463.86137846,9.735e-05,2]
[424951205,1781335843000,-655887.11684467,9.735e-05,2]
[424951185,1781335843000,-157.82360452,9.726e-05,2]
[424951191,1781335843000,-1294.99788443,9.734e-05,3]
[424951190,1781335843000,-1076.83830854,9.734e-05,3]
[424951187,1781335843000,-155.86116887,9.726e-05,2]
[424951189,1781335843000,-151.0,9.732e-05,2]
[424951194,1781335843000,-13877.69187824,9.735e-05,2]
[424951238,1781335846000,-332.02167352,9.735e-05,2]
[424951239,1781335846000,-500.0,9.735e-05,2]
[424951242,1781335846000,-238657.89504133,9.735e-05,2]
[424951240,1781335846000,-10390.86770645,9.735e-05,2]
[424951243,1781335846000,-354.70923108,9.735e-05,2]
[424951244,1781335846000,-1937.6232894,9.735e-05,2]
[424951241,1781335846000,-8873.90432896,9.735e-05,2]
[424951356,1781335884000,1136.92,1.13e-06,16]
[424951357,1781335885000,1326.41,1.09e-06,16]
[424951370,1781335946000,500.0,9.926e-05,5]
[424951371,1781335946000,500.0,9.926e-05,5]
[424951373,1781335946000,170.66015274,9.926e-05,5]
[424951375,1781335946000,500.0,9.926e-05,5]
[424951374,1781335946000,500.0,9.926e-05,5]
[424951372,1781335946000,500.0,9.926e-05,5]
[424951376,1781335946000,500.0,9.926e-05,5]
[424951377,1781335947000,500.0,9.926e-05,5]
[424951380,1781335947000,500.0,9.926e-05,5]
[424951379,1781335947000,500.0,9.926e-05,5]
[424951378,1781335947000,288.22414149,9.926e-05,5]
[424951383,1781335948000,500.0,9.926e-05,5]
[424951381,1781335948000,500.0,9.926e-05,5]
[424951384,1781335948000,605.13345371,9.926e-05,5]
[424951382,1781335948000,500.0,9.926e-05,5]
[424951385,1781336078000,-176.038,8.015e-05,2]
[424951388,1781336132000,-500.0,8.014e-05,2]
[424951389,1781336188000,-495.18485557,8.014e-05,2]
[424951390,1781336240000,-2166.856,8.015e-05,2]
[424951395,1781336306000,500.0,9.726e-05,5]
[424951393,1781336306000,500.0,9.726e-05,5]
[424951392,1781336306000,500.0,9.726e-05,5]
[424951394,1781336306000,150.0,9.726e-05,5]
[424951396,1781336307000,161.54451298,9.726e-05,5]
[424951400,1781336307000,500.0,9.726e-05,5]
[424951399,1781336307000,500.0,9.726e-05,5]
[424951398,1781336307000,500.0,9.726e-05,5]
[424951397,1781336307000,500.0,9.726e-05,5]
[424951401,1781336308000,500.0,9.726e-05,5]
[424951403,1781336308000,545.99070639,9.726e-05,5]
[424951402,1781336308000,500.0,9.726e-05,5]
[424951408,1781336382000,-151.0,8.175e-05,2]
[424951406,1781336382000,-161.59782111,8.098e-05,2]
[424951407,1781336382000,-331.0,8.137e-05,2]
[424951405,1781336382000,-185.43931255,8.054e-05,2]
[424951410,1781336383000,-151.0,8.175e-05,2]
[424951409,1781336383000,-151.0,8.175e-05,2]
[424951412,1781336383000,-151.0,8.175e-05,2]
[424951414,1781336383000,-300.0,8.177e-05,2]
[424951411,1781336383000,-151.0,8.175e-05,2]
[424951415,1781336383000,-150.0,8.177e-05,2]
[424951416,1781336383000,-150.0,8.178e-05,2]
[424951417,1781336383000,-36495.04476985,8.178e-05,2]
[424951413,1781336383000,-1185.91809649,8.177e-05,2]
[424951419,1781336422000,150.0,9.726e-05,5]
[424951420,1781336424000,150.0,9.726e-05,5]
[424951421,1781336426000,150.0,9.726e-05,5]
[424951426,1781336676000,-1733.484,8.015e-05,2]
[424951428,1781336730000,-176.038,8.015e-05,2]
[424951429,1781336731000,195.49,6.29e-05,2]
[424951433,1781336749000,-465.91381321,8.077e-05,2]
[424951432,1781336749000,-300.0,8.076e-05,2]
[424951434,1781336783000,-34.08618679,8.077e-05,2]
[424951439,1781336800000,500.0,9.726e-05,5]
[424951438,1781336800000,500.0,9.726e-05,5]
[424951437,1781336800000,500.0,9.726e-05,5]
[424951436,1781336800000,500.0,9.726e-05,5]
[424951435,1781336800000,500.0,9.726e-05,5]
[424951440,1781336801000,317.00728438,9.726e-05,5]
[424951441,1781336839000,-1168.19,7.941e-05,2]
[424951442,1781336840000,-500.0,8.076e-05,2]
[424951443,1781336840000,-247.25680696,8.076e-05,2]
[424951444,1781336891000,-187.43749859,8.008e-05,2]
[424951446,1781336944000,-211.329118,8.008e-05,2]
[424951447,1781336997000,-150.0,7.833e-05,2]
[424951579,1781337050000,-1467.23,7.973e-05,2]
[424951602,1781337051000,-150.71042637,8.753e-05,2]
[424951603,1781337051000,-150.0,8.753e-05,2]
[424951601,1781337051000,-150.52331038,8.753e-05,2]
[424951599,1781337051000,-150.0,8.753e-05,2]
[424951600,1781337051000,-150.0,8.753e-05,2]
[424951593,1781337051000,-4577.25,8.326e-05,2]
[424951598,1781337051000,-150.0,8.753e-05,2]
[424951594,1781337051000,-14722.39415895,8.631e-05,2]
[424951597,1781337051000,-323.87042721,8.735e-05,2]
[424951591,1781337051000,-2000.0,8.219e-05,2]
[424951596,1781337051000,-219.84,8.676e-05,2]
[424951581,1781337051000,-3354.54047661,8.078e-05,2]
[424951590,1781337051000,-219.84,8.219e-05,2]
[424951589,1781337051000,-216.029201,8.208e-05,2]
[424951586,1781337051000,-150.0,8.18e-05,2]
[424951588,1781337051000,-160.0,8.208e-05,2]
[424951587,1781337051000,-154.70902674,8.188e-05,2]
[424951585,1781337051000,-14219.007962,8.178e-05,2]
[424951583,1781337051000,-1512.28744261,8.078e-05,2]
[424951584,1781337051000,-173.34056836,8.137e-05,2]
[424951582,1781337051000,-12698.92625739,8.078e-05,2]
[424951580,1781337051000,-820.27762339,8.078e-05,2]
[424951604,1781337051000,-150.0,8.753e-05,2]
[424951592,1781337051000,-150.0,8.261e-05,2]
[424951605,1781337051000,-150.0,8.753e-05,2]
[424951595,1781337051000,-165.3,8.66e-05,2]
[424951607,1781337051000,-250.0,8.77e-05,2]
[424951606,1781337051000,-300.0,8.77e-05,2]
[424951629,1781337051000,-15145.1805329,8.864e-05,2]
[424951630,1781337051000,-514.46740334,8.864e-05,2]
[424951628,1781337051000,-192103.16433521,8.864e-05,2]
[424951624,1781337051000,-150.99,8.864e-05,2]
[424951627,1781337051000,-29052.16,8.864e-05,2]
[424951622,1781337051000,-3881.82,8.864e-05,2]
[424951621,1781337051000,-1633.07,8.864e-05,2]
[424951626,1781337051000,-299.99,8.864e-05,2]
[424951625,1781337051000,-9771.7,8.864e-05,2]
[424951619,1781337051000,-9999.99,8.864e-05,2]
[424951620,1781337051000,-499.99,8.864e-05,2]
[424951623,1781337051000,-2887.32,8.864e-05,2]
[424951614,1781337051000,-4999.99,8.864e-05,2]
[424951617,1781337051000,-9805.13,8.864e-05,2]
[424951615,1781337051000,-10977.58,8.864e-05,2]
[424951631,1781337051000,-1222.84,8.864e-05,2]
[424951612,1781337051000,-999.99,8.864e-05,2]
[424951608,1781337051000,-176.71135637,8.82e-05,2]
[424951616,1781337051000,-12114.17,8.864e-05,2]
[424951613,1781337051000,-9999.99,8.864e-05,2]
[424951610,1781337051000,-500.0,8.842e-05,2]
[424951609,1781337051000,-150.0,8.842e-05,2]
[424951611,1781337051000,-9999.99,8.864e-05,2]
[424951618,1781337051000,-435.89,8.864e-05,2]
[424951633,1781337052000,-1898.99031846,8.864e-05,2]
[424951634,1781337052000,-370.46073927,8.864e-05,2]
[424951632,1781337052000,-3192.91772855,8.864e-05,2]
[424951635,1781337052000,-1229.82,8.864e-05,2]
[424951636,1781337052000,-815.79999999,8.864e-05,2]
[424951641,1781337073000,-2913.42894228,8.864e-05,2]
[424951638,1781337073000,-150.0,8.131e-05,2]
[424951637,1781337073000,-150.0,8.051e-05,2]
[424951640,1781337073000,-193.0,8.29e-05,2]
[424951639,1781337073000,-150.0,8.211e-05,2]
[424951642,1781337073000,-3753.82,8.864e-05,2]
[424951651,1781337073000,-1209.44395008,8.991e-05,2]
[424951643,1781337073000,-353.89,8.864e-05,2]
[424951646,1781337073000,-300.0,8.883e-05,2]
[424951648,1781337073000,-441.62080003,8.883e-05,2]
[424951645,1781337073000,-300.0,8.883e-05,2]
[424951652,1781337073000,-3191.74171954,8.991e-05,2]
[424951644,1781337073000,-1025.18,8.877e-05,2]
[424951653,1781337073000,-5630.61072251,8.991e-05,2]
[424951649,1781337073000,-150.0,8.93e-05,2]
[424951650,1781337073000,-1168.19,8.933e-05,2]
[424951647,1781337073000,-300.0,8.883e-05,2]
[424951684,1781337074000,-151.0,9.67e-05,2]
[424951680,1781337074000,-165.3,9.613e-05,2]
[424951688,1781337074000,-500.0,9.67e-05,2]
[424951683,1781337074000,-188.85854515,9.638e-05,2]
[424951686,1781337074000,-151.0,9.67e-05,2]
[424951685,1781337074000,-151.0,9.67e-05,2]
[424951704,1781337074000,-500.0,9.67e-05,2]
[424951687,1781337074000,-155.450133,9.67e-05,2]
[424951690,1781337074000,-500.0,9.67e-05,2]
[424951675,1781337074000,-150.0,9.483e-05,2]
[424951689,1781337074000,-500.0,9.67e-05,2]
[424951692,1781337074000,-500.0,9.67e-05,2]
[424951694,1781337074000,-500.0,9.67e-05,2]
[424951693,1781337074000,-500.0,9.67e-05,2]
[424951695,1781337074000,-500.0,9.67e-05,2]
[424951696,1781337074000,-500.0,9.67e-05,2]
[424951698,1781337074000,-500.0,9.67e-05,2]
[424951699,1781337074000,-500.0,9.67e-05,2]
[424951703,1781337074000,-500.0,9.67e-05,2]
[424951700,1781337074000,-500.0,9.67e-05,2]
[424951701,1781337074000,-500.0,9.67e-05,2]
[424951697,1781337074000,-500.0,9.67e-05,2]
[424951677,1781337074000,-151.72,9.541e-05,2]
[424951691,1781337074000,-500.0,9.67e-05,2]
[424951681,1781337074000,-8693.5177,9.635e-05,2]
[424951655,1781337074000,-11396.6919,8.991e-05,2]
[424951679,1781337074000,-361.61769362,9.562e-05,2]
[424951702,1781337074000,-500.0,9.67e-05,2]
[424951654,1781337074000,-8423.05689617,8.991e-05,2]
[424951657,1781337074000,-150.0,9.019e-05,2]
[424951662,1781337074000,-219.84,9.132e-05,2]
[424951659,1781337074000,-150.0,9.078e-05,2]
[424951656,1781337074000,-150.0,8.997e-05,2]
[424951660,1781337074000,-150.0,9.107e-05,2]
[424951661,1781337074000,-500.0,9.116e-05,2]
[424951658,1781337074000,-150.0,9.078e-05,2]
[424951664,1781337074000,-150.0,9.196e-05,2]
[424951663,1781337074000,-165.3,9.136e-05,2]
[424951673,1781337074000,-150.0,9.402e-05,2]
[424951667,1781337074000,-2000.0,9.247e-05,2]
[424951669,1781337074000,-150.0,9.284e-05,2]
[424951668,1781337074000,-151.0,9.274e-05,2]
[424951665,1781337074000,-150.0,9.24e-05,2]
[424951666,1781337074000,-150.0,9.24e-05,2]
[424951670,1781337074000,-150.0,9.372e-05,2]
[424951672,1781337074000,-150.0,9.402e-05,2]
[424951671,1781337074000,-624.19747981,9.39e-05,2]
[424951674,1781337074000,-150.0,9.461e-05,2]
[424951678,1781337074000,-150.0,9.549e-05,2]
[424951676,1781337074000,-41328.8518647,9.515e-05,2]
[424951682,1781337074000,-150.0,9.638e-05,2]
[424951706,1781337074000,-500.0,9.67e-05,2]
[424951743,1781337074000,-500.0,9.67e-05,2]
[424951712,1781337074000,-500.0,9.67e-05,2]
[424951736,1781337074000,-500.0,9.67e-05,2]
[424951735,1781337074000,-500.0,9.67e-05,2]
[424951741,1781337074000,-500.0,9.67e-05,2]
[424951742,1781337074000,-500.0,9.67e-05,2]
[424951737,1781337074000,-500.0,9.67e-05,2]
[424951738,1781337074000,-500.0,9.67e-05,2]
[424951740,1781337074000,-500.0,9.67e-05,2]
[424951744,1781337074000,-500.0,9.67e-05,2]
[424951746,1781337074000,-500.0,9.67e-05,2]
[424951745,1781337074000,-500.0,9.67e-05,2]
[424951754,1781337074000,-500.0,9.67e-05,2]
[424951755,1781337074000,-500.0,9.67e-05,2]
[424951749,1781337074000,-500.0,9.67e-05,2]
[424951756,1781337074000,-500.0,9.67e-05,2]
[424951748,1781337074000,-500.0,9.67e-05,2]
[424951747,1781337074000,-500.0,9.67e-05,2]
[424951750,1781337074000,-500.0,9.67e-05,2]
[424951753,1781337074000,-500.0,9.67e-05,2]
[424951751,1781337074000,-500.0,9.67e-05,2]
[424951752,1781337074000,-500.0,9.67e-05,2]
[424951757,1781337074000,-500.0,9.67e-05,2]
[424951758,1781337074000,-500.0,9.67e-05,2]
[424951705,1781337074000,-500.0,9.67e-05,2]
[424951732,1781337074000,-500.0,9.67e-05,2]
[424951734,1781337074000,-500.0,9.67e-05,2]
[424951739,1781337074000,-500.0,9.67e-05,2]
[424951733,1781337074000,-500.0,9.67e-05,2]
[424951730,1781337074000,-500.0,9.67e-05,2]
[424951713,1781337074000,-500.0,9.67e-05,2]
[424951710,1781337074000,-500.0,9.67e-05,2]
[424951707,1781337074000,-500.0,9.67e-05,2]
[424951708,1781337074000,-500.0,9.67e-05,2]
[424951714,1781337074000,-500.0,9.67e-05,2]
[424951711,1781337074000,-500.0,9.67e-05,2]
[424951716,1781337074000,-500.0,9.67e-05,2]
[424951715,1781337074000,-500.0,9.67e-05,2]
[424951721,1781337074000,-500.0,9.67e-05,2]
[424951719,1781337074000,-500.0,9.67e-05,2]
[424951720,1781337074000,-500.0,9.67e-05,2]
[424951709,1781337074000,-500.0,9.67e-05,2]
[424951718,1781337074000,-500.0,9.67e-05,2]
[424951717,1781337074000,-500.0,9.67e-05,2]
[424951724,1781337074000,-500.0,9.67e-05,2]
[424951723,1781337074000,-500.0,9.67e-05,2]
[424951726,1781337074000,-500.0,9.67e-05,2]
[424951725,1781337074000,-500.0,9.67e-05,2]
[424951727,1781337074000,-500.0,9.67e-05,2]
[424951728,1781337074000,-500.0,9.67e-05,2]
[424951722,1781337074000,-500.0,9.67e-05,2]
[424951731,1781337074000,-500.0,9.67e-05,2]
[424951729,1781337074000,-500.0,9.67e-05,2]
[424951773,1781337075000,-398.786146,9.67e-05,2]
[424951777,1781337075000,-506.48669401,9.726e-05,3]
[424951779,1781337075000,-154.45182715,9.726e-05,2]
[424951774,1781337075000,-9221.7133353,9.68e-05,2]
[424951780,1781337075000,-151.67579385,9.726e-05,2]
[424951776,1781337075000,-500.0,9.726e-05,3]
[424951778,1781337075000,-1246.9298658,9.726e-05,2]
[424951782,1781337075000,-155.30128715,9.726e-05,2]
[424951783,1781337075000,-155.86116887,9.726e-05,2]
[424951772,1781337075000,-500.0,9.67e-05,2]
[424951775,1781337075000,-2057.6423733,9.717e-05,2]
[424951770,1781337075000,-500.0,9.67e-05,2]
[424951760,1781337075000,-500.0,9.67e-05,2]
[424951771,1781337075000,-500.0,9.67e-05,2]
[424951768,1781337075000,-500.0,9.67e-05,2]
[424951763,1781337075000,-500.0,9.67e-05,2]
[424951764,1781337075000,-500.0,9.67e-05,2]
[424951767,1781337075000,-500.0,9.67e-05,2]
[424951766,1781337075000,-500.0,9.67e-05,2]
[424951762,1781337075000,-500.0,9.67e-05,2]
[424951765,1781337075000,-500.0,9.67e-05,2]
[424951769,1781337075000,-500.0,9.67e-05,2]
[424951784,1781337075000,-174.0991703,9.726e-05,2]
[424951761,1781337075000,-500.0,9.67e-05,2]
[424951759,1781337075000,-500.0,9.67e-05,2]
[424951781,1781337075000,-157.82360452,9.726e-05,2]
[424951786,1781337075000,-4238.0320048,9.728e-05,2]
[424951795,1781337075000,-2009884.42015801,9.735e-05,2]
[424951790,1781337075000,-151.0,9.728e-05,2]
[424951813,1781337075000,-462.31375,9.735e-05,2]
[424951812,1781337075000,-1007.09187888,9.735e-05,2]
[424951811,1781337075000,-664.32899668,9.735e-05,2]
[424951810,1781337075000,-792182.20229604,9.735e-05,2]
[424951808,1781337075000,-3965.27281942,9.735e-05,2]
[424951807,1781337075000,-2468.0,9.735e-05,2]
[424951806,1781337075000,-6443.9844399,9.735e-05,2]
[424951804,1781337075000,-360.3761118,9.735e-05,2]
[424951805,1781337075000,-7920.14459339,9.735e-05,2]
[424951785,1781337075000,-49890.5602959,9.728e-05,2]
[424951803,1781337075000,-729.11141954,9.735e-05,2]
[424951801,1781337075000,-464.504,9.735e-05,2]
[424951802,1781337075000,-1265.0403738,9.735e-05,2]
[424951800,1781337075000,-4784.62477999,9.735e-05,2]
[424951791,1781337075000,-230.390535,9.728e-05,2]
[424951789,1781337075000,-151.0,9.728e-05,2]
[424951799,1781337075000,-7296.23288235,9.735e-05,2]
[424951788,1781337075000,-3651.7422877,9.728e-05,2]
[424951787,1781337075000,-100881.3435905,9.728e-05,2]
[424951792,1781337075000,-151.0,9.732e-05,2]
[424951793,1781337075000,-151.0,9.732e-05,2]
[424951797,1781337075000,-3707.705,9.735e-05,2]
[424951796,1781337075000,-824.02692099,9.735e-05,2]
[424951798,1781337075000,-950.27827561,9.735e-05,2]
[424951794,1781337075000,-1185.91809648,9.734e-05,3]
[424951809,1781337075000,-739.45547386,9.735e-05,2]
[424951814,1781337113000,-500.0,8.077e-05,2]
[424951817,1781337143000,506.48669401,9.726e-05,5]
[424951816,1781337143000,500.0,9.726e-05,5]
[424951822,1781337262000,-2165.195,7.819e-05,2]
[424951825,1781337315000,-188.948,7.819e-05,2]
[424951826,1781337371000,-150.0,7.791e-05,2]
[424951827,1781337371000,152.0,7.759e-05,7]